fUST/lending_fUST_20241025
["ID","MTS","AMOUNT","RATE_DAILY","PERIOD"]
[340772428,1729789895529,-1586.74,0.00017186,2]
[340772429,1729789895551,-500.0,0.00017186,2]
[340772430,1729789895575,-513.24,0.00017186,2]
[340772431,1729789895600,-500.0,0.00017186,2]
[340772432,1729789895623,-300.0,0.00017447,2]
[340772433,1729789895647,-300.0,0.00017447,2]
[340772434,1729789895675,-500.0,0.00017448,2]
[340772435,1729789895701,-500.0,0.00017448,2]
[340772436,1729789895728,-500.0,0.00017448,2]
[340772437,1729789895755,-500.0,0.00017448,2]
[340772438,1729789895781,-500.0,0.00017448,2]
[340772439,1729789896040,-650.0,0.00017448,2]
[340772440,1729789896065,-151.0,0.00017449,2]
[340772441,1729789896092,-151.0,0.00017449,2]
[340772442,1729789896117,-389.887466,0.00017449,2]
[340772444,1729789896143,-389.887466,0.00017449,2]
[340772445,1729789896182,-500.0,0.00017449,2]
[340772446,1729789896210,-151.0,0.00017449,2]
[340772447,1729789896236,-151.0,0.00017449,2]
[340772448,1729789896262,-151.0,0.00017449,2]
[340772449,1729789896289,-151.0,0.0001745,2]
[340772450,1729789896314,-151.0,0.0001745,2]
[340772451,1729789896340,-389.887466,0.0001745,2]
[340772452,1729789896366,-389.887466,0.0001745,2]
[340772453,1729789896393,-151.0,0.0001745,2]
[340772454,1729789896418,-196.127807,0.0001745,2]
[340772455,1729789896444,-151.0,0.0001745,2]
[340772456,1729789896471,-514.1,0.00017458,2]
[340772457,1729789896498,-500.0,0.00017458,2]
[340772458,1729789896524,-500.0,0.00017459,2]
[340772459,1729789896548,-2909.0,0.00017459,2]
[340772460,1729789896572,-1726.12,0.00017459,2]
[340772461,1729789896599,-1329.09,0.00017459,2]
[340772462,1729789896624,-500.0,0.00017459,2]
[340772463,1729789896647,-2693.89,0.00017459,2]
[340772464,1729789896672,-500.0,0.00017459,2]
[340772465,1729789896698,-500.0,0.0001746,2]
[340772466,1729789896723,-500.0,0.0001746,2]
[340772467,1729789896748,-151.0,0.0001746,2]
[340772468,1729789896774,-1155.08,0.0001746,2]
[340772469,1729789896798,-151.0,0.0001746,2]
[340772470,1729789896821,-862.07,0.0001746,2]
[340772471,1729789896845,-605.1965364,0.0001746,2]
[340772472,1729789896870,-909.59,0.0001746,2]
[340772473,1729789896895,-389.887466,0.0001746,2]
[340772474,1729789896917,-1449.6,0.0001746,2]
[340772475,1729789896941,-151.0,0.0001746,2]
[340772476,1729789896965,-151.0,0.0001746,2]
[340772477,1729789896991,-825.7785426,0.0001746,2]
[340772483,1729790340807,181.649359,0.00013973,2]
[340772486,1729790589108,390.759892,0.0001548,2]
[340772487,1729790590350,791.809241,0.00015564,2]
[340772525,1729790811993,163.417372,0.00015332,2]
[340772528,1729790875192,24900.0,0.0001519,2]
[340772530,1729790892834,183.50754533,0.00015998,2]
[340772531,1729790911784,17561.88800794,0.000134,2]
[340772533,1729790912587,266.85429914,0.00014114,2]
[340772563,1729790921930,29692.15643163,0.00014,2]
[340772568,1729790925442,559.86081788,0.000149,2]
[340772604,1729791038025,-300.0,0.00016096,2]
[340772605,1729791038035,-300.0,0.00016096,2]
[340772619,1729791038283,-500.0,0.00016097,2]
[340772621,1729791038295,-1126.8,0.00016097,2]
[340772623,1729791038304,-618.0836846,0.00016097,2]
[340772627,1729791038970,-1646.7963154,0.00016097,2]
[340772628,1729791038980,-516.68565171,0.00016097,2]
[340772647,1729791039992,-669.16434829,0.00016097,2]
[340772648,1729791040005,-43.02565271,0.00016097,2]
[340772649,1729791040018,-808.88059479,0.00016097,2]
[340772682,1729791078422,308.50453456,0.00015997,2]
[340772685,1729791114288,195.379946,0.00015144,2]
[340772687,1729791198471,752.992277,0.00015098,2]
[340772688,1729791198889,752.992277,0.00015783,2]
[340772689,1729791223456,183.50754533,0.00015997,2]
[340772691,1729791390939,200.000001,0.00013973,2]
[340772692,1729791413382,171.22649,0.00015208,2]
[340772693,1729791413591,171.22649,0.0001534,2]
[340772694,1729791413808,171.22649,0.00015472,2]
[340772695,1729791414060,171.22649,0.00015604,2]
[340772696,1729791414310,171.22649,0.00015736,2]
[340772697,1729791414527,171.22649,0.00015868,2]
[340772698,1729791414812,171.22649,0.00016,2]
[340772699,1729791442722,24900.0,0.00015095,2]
[340772706,1729791624607,195.379947,0.00015092,2]
[340772708,1729791695911,557525.58464536,0.00015,2]
[340772709,1729791695938,414280.55029751,0.00015,2]
[340772710,1729791717962,250.997425,0.00015087,2]
[340772711,1729791718094,250.997425,0.00015772,2]
[340772712,1729791816821,4172.14844375,0.00015986,2]
[340772724,1729792056839,24900.0,0.00015086,2]
[340772774,1729792232430,-300.0,0.00016072,2]
[340772775,1729792232439,-300.0,0.00016072,2]
[340772776,1729792232449,-500.0,0.00016073,2]
[340772777,1729792232458,-152.59829434,0.00016073,2]
[340772778,1729792232467,-500.0,0.00016073,2]
[340772779,1729792232477,-500.0,0.00016073,2]
[340772780,1729792232486,-500.0,0.00016073,2]
[340772781,1729792232495,-500.0,0.00016073,2]
[340772782,1729792232505,-500.0,0.00016073,2]
[340772783,1729792232514,-500.0,0.00016073,2]
[340772784,1729792232523,-4854.66273786,0.00016076,2]
[340772785,1729792232535,-2740.37732292,0.00016076,2]
[340772786,1729792232544,-1483.3591727,0.00016076,2]
[340772787,1729792232553,-1143.2832143,0.00016076,2]
[340772788,1729792232563,-8977.93155157,0.00016077,2]
[340772799,1729792238831,-123.30949205,0.00016077,2]
[340772814,1729792240547,-6259.39013864,0.00016077,2]
[340772815,1729792240560,-7424.48900004,0.00016077,2]
[340772816,1729792240572,-4450.0775181,0.00016077,2]
[340772817,1729792240582,-7595.04006078,0.00016077,2]
[340772818,1729792240591,-1483.3591727,0.00016077,2]
[340772819,1729792240601,-7595.04006078,0.00016078,2]
[340772820,1729792240610,-1483.3591727,0.00016078,2]
[340772821,1729792240620,-500.0,0.00016084,2]
[340772822,1729792240629,-1079.85,0.00016084,2]
[340772823,1729792240639,-2170.51,0.00016084,2]
[340772824,1729792240648,-1136.44,0.00016084,2]
[340772825,1729792240657,-3858.07,0.00016084,2]
[340772826,1729792240666,-1359.98,0.00016084,2]
[340772827,1729792240676,-1023.11,0.00016084,2]
[340772828,1729792240685,-1445.73,0.00016084,2]
[340772829,1729792240695,-308.72893602,0.00016084,2]
[340772830,1729792240707,-557.01155632,0.00016084,2]
[340772831,1729792240858,-15.02950766,0.00016084,2]
[340772832,1729792240867,-500.0,0.00016084,2]
[340772833,1729792240877,-67.01652342,0.00016084,2]
[340772834,1729792240888,-432.98347658,0.00016084,2]
[340772835,1729792240897,-767.12333782,0.00016084,2]
[340772836,1729792240909,-169.46666218,0.00016084,2]
[340772837,1729792240918,-1582.28,0.00016084,2]
[340772838,1729792240928,-500.0,0.00016084,2]
[340772839,1729792240937,-427.58006697,0.00016084,2]
[340772840,1729792241304,-72.41993303,0.00016084,2]
[340772841,1729792241314,-500.0,0.00016084,2]
[340772842,1729792241323,-139.17655183,0.00016085,2]
[340772872,1729792244755,-856.19344817,0.00016085,2]
[340772873,1729792244765,-500.0,0.00016085,2]
[340772874,1729792244774,-900.57875413,0.00016085,2]
[340772890,1729792246381,-615.90124587,0.00016085,2]
[340772891,1729792246391,-500.0,0.00016085,2]
[340772892,1729792246401,-2469.4,0.00016085,2]
[340772893,1729792246417,-1124.67,0.00016085,2]
[340772894,1729792246432,-22402.79615811,0.00016085,2]
[340772895,1729792246445,-5079.19384189,0.00016085,2]
[340772896,1729792246456,-500.0,0.00016085,2]
[340772897,1729792246465,-500.0,0.00016085,2]
[340772898,1729792246475,-761.03,0.00016085,2]
[340772899,1729792246485,-1491.38,0.00016085,2]
[340772900,1729792246495,-1303.68,0.00016085,2]
[340772901,1729792246505,-697.65034683,0.00016085,2]
[340772902,1729792248736,250.997425,0.00015089,2]
[340772903,1729792267038,4471.97427561,0.00016,2]
[340772904,1729792352236,3650.62988829,0.00015984,2]
[340772905,1729792391491,5816.04247266,0.00015769,2]
[340772906,1729792412731,-500.0,0.00016073,2]
[340772907,1729792412755,-500.0,0.00016073,2]
[340772908,1729792412779,-500.0,0.00016073,2]
[340772909,1729792412802,-500.0,0.00016073,2]
[340772910,1729792412825,-314.75124843,0.00016073,2]
[340772911,1729792412851,-12913.5064661,0.00016075,2]
[340772912,1729792412877,-43146.6189224,0.00016075,2]
[340772913,1729792412899,-300.0,0.00016075,2]
[340772914,1729792412922,-300.0,0.00016075,2]
[340772915,1729792412945,-500.0,0.00016076,2]
[340772916,1729792412969,-1034.86,0.00016076,2]
[340772917,1729792412991,-1089.09,0.00016076,2]
[340772918,1729792413014,-2080.07,0.00016076,2]
[340772919,1729792413036,-1303.31,0.00016076,2]
[340772920,1729792413060,-3697.32,0.00016076,2]
[340772921,1729792413083,-980.48,0.00016076,2]
[340772922,1729792413107,-25827.0129321,0.00016076,2]
[340772923,1729792413132,-86293.2378448,0.00016076,2]
[340772924,1729792413155,-640.84309583,0.00016084,2]
[340772925,1729792413177,-500.0,0.00016084,2]
[340772926,1729792413202,-22491.89949034,0.00016084,2]
[340772928,1729792446982,200.000001,0.00013973,2]
[340772929,1729792475420,169.47790376,0.00015976,2]
[340772930,1729792480306,169.47790374,0.0001598,2]
[340772931,1729792485386,169.47790374,0.00015984,2]
[340772932,1729792542894,-300.0,0.00016072,2]
[340772933,1729792542921,-300.0,0.00016072,2]
[340772934,1729792542943,-500.0,0.00016073,2]
[340772935,1729792542966,-500.0,0.00016073,2]
[340772936,1729792542989,-501.03219678,0.00016073,2]
[340772937,1729792543012,-500.0,0.00016073,2]
[340772938,1729792543036,-343.54970197,0.00016073,2]
[340772939,1729792543058,-500.0,0.00016073,2]
[340772940,1729792543081,-500.0,0.00016073,2]
[340772941,1729792543106,-500.0,0.00016073,2]
[340772942,1729792543131,-500.0,0.00016073,2]
[340772943,1729792543155,-762.18880953,0.00016076,2]
[340772944,1729792543179,-1385.49,0.00016076,2]
[340772945,1729792543202,-844.07,0.00016076,2]
[340772946,1729792543224,-1516.35,0.00016076,2]
[340772947,1729792543249,-500.0,0.00016076,2]
[340772948,1729792543273,-897.56,0.00016076,2]
[340772949,1729792543298,-500.0,0.00016076,2]
[340772950,1729792543321,-412.81543435,0.00016076,2]
[340772951,1729792543345,-25399.74,0.00016076,2]
[340772952,1729792543370,-5051.19,0.00016076,2]
[340772953,1729792543395,-2366.51,0.00016076,2]
[340772954,1729792543419,-1446.33,0.00016076,2]
[340772955,1729792543442,-1249.36,0.00016076,2]
[340772956,1729792543467,-500.0,0.00016084,2]
[340772957,1729792543491,-500.0,0.00016084,2]
[340772958,1729792543746,-500.0,0.00016084,2]
[340772959,1729792543770,-1596.53,0.00016084,2]
[340772960,1729792543793,-500.0,0.00016084,2]
[340772961,1729792543816,-1884.08,0.00016084,2]
[340772962,1729792543839,-569.19,0.00016084,2]
[340772963,1729792543862,-500.0,0.00016084,2]
[340772964,1729792543886,-527.21,0.00016084,2]
[340772965,1729792543910,-2666.58,0.00016084,2]
[340772966,1729792543934,-1315.58,0.00016084,2]
[340772967,1729792543958,-1218.33,0.00016084,2]
[340772968,1729792543980,-833.79,0.00016084,2]
[340772969,1729792544003,-500.0,0.00016084,2]
[340772970,1729792544025,-301.43,0.00016084,2]
[340772971,1729792544048,-743.02,0.00016084,2]
[340772972,1729792544071,-520.83,0.00016084,2]
[340772973,1729792544094,-1892.34,0.00016084,2]
[340772974,1729792544116,-299.39895955,0.00016084,2]
[340772975,1729792544139,-1008.03,0.00016084,2]
[340772976,1729792544162,-218.61418728,0.00016084,2]
[340772977,1729792544185,-500.0,0.00016084,2]
[340772978,1729792544208,-1706.08,0.00016084,2]
[340772979,1729792544231,-500.0,0.00016084,2]
[340772980,1729792544255,-707.2,0.00016084,2]
[340772981,1729792544278,-500.0,0.00016084,2]
[340772982,1729792544301,-840.14,0.00016084,2]
[340772983,1729792544324,-895.8,0.00016084,2]
[340772984,1729792544350,-500.0,0.00016084,2]
[340772985,1729792544373,-556.16,0.00016084,2]
[340772986,1729792544397,-601.18,0.00016084,2]
[340772987,1729792544421,-834.63,0.00016084,2]
[340772988,1729792544444,-1154.83,0.00016084,2]
[340772989,1729792544469,-1309.69,0.00016084,2]
[340772990,1729792544494,-596.84,0.00016084,2]
[340772991,1729792544518,-500.0,0.00016084,2]
[340772992,1729792544542,-536.3,0.00016084,2]
[340772993,1729792544566,-944.42,0.00016084,2]
[340772994,1729792544593,-837.16,0.00016084,2]
[340772995,1729792544623,-1619.59,0.00016084,2]
[340772996,1729792544647,-500.0,0.00016084,2]
[340772997,1729792544674,-500.0,0.00016084,2]
[340772998,1729792544700,-1121.0,0.00016084,2]
[340772999,1729792544723,-522.19,0.00016085,2]
[340773000,1729792544751,-1109.89,0.00016085,2]
[340773001,1729792544776,-500.0,0.00016085,2]
[340773002,1729792544803,-500.0,0.00016085,2]
[340773003,1729792544828,-238.81123034,0.00016085,2]
[340773004,1729792544861,-500.0,0.00016085,2]
[340773005,1729792544889,-317.83158385,0.00016085,2]
[340773006,1729792544914,-464.25368905,0.00016085,2]
[340773007,1729792544941,-500.0,0.00016085,2]
[340773008,1729792544967,-500.0,0.00016085,2]
[340773009,1729792544995,-500.0,0.00016085,2]
[340773010,1729792545021,-500.0,0.00016085,2]
[340773011,1729792545045,-257.20385561,0.00016085,2]
[340773012,1729792545071,-500.0,0.00016085,2]
[340773013,1729792545097,-500.0,0.00016085,2]
[340773014,1729792545121,-500.0,0.00016085,2]
[340773015,1729792545145,-500.0,0.00016085,2]
[340773016,1729792545169,-1123.31,0.00016085,2]
[340773017,1729792545193,-1124.98,0.00016085,2]
[340773018,1729792545217,-623.27,0.00016085,2]
[340773019,1729792545240,-500.0,0.00016085,2]
[340773020,1729792545264,-500.0,0.00016085,2]
[340773021,1729792545288,-578.94423523,0.00016085,2]
[340773022,1729792545312,-500.0,0.00016085,2]
[340773023,1729792545336,-432.02290859,0.00016085,2]
[340773024,1729792545362,-500.0,0.00016085,2]
[340773025,1729792545386,-501.28214301,0.00016085,2]
[340773026,1729792545411,-1553.45,0.00016085,2]
[340773027,1729792545437,-500.0,0.00016085,2]
[340773028,1729792545462,-953.8,0.00016085,2]
[340773029,1729792545485,-500.0,0.00016085,2]
[340773030,1729792545512,-605.72,0.00016085,2]
[340773031,1729792545536,-713.08,0.00016085,2]
[340773032,1729792545560,-1084.91,0.00016085,2]
[340773033,1729792545585,-412.02142115,0.00016085,2]
[340773034,1729792545612,-500.0,0.00016085,2]
[340773035,1729792545639,-936.62,0.00016085,2]
[340773036,1729792545665,-817.06,0.00016085,2]
[340773037,1729792545690,-1481.79,0.00016085,2]
[340773038,1729792545716,-817.39,0.00016085,2]
[340773039,1729792545743,-500.0,0.00016085,2]
[340773040,1729792545767,-500.0,0.00016085,2]
[340773041,1729792545790,-1328.8,0.00016085,2]
[340773042,1729792545814,-915.53,0.00016085,2]
[340773043,1729792545840,-1013.26,0.00016085,2]
[340773044,1729792545863,-500.0,0.00016085,2]
[340773045,1729792545889,-500.0,0.00016085,2]
[340773046,1729792545915,-517.36833883,0.00016085,2]
[340773047,1729792545938,-536.97410494,0.00016085,2]
[340773048,1729792545963,-500.0,0.00016085,2]
[340773049,1729792545986,-759.03,0.00016085,2]
[340773050,1729792546010,-500.0,0.00016085,2]
[340773051,1729792546033,-514.21,0.00016085,2]
[340773052,1729792546056,-746.72,0.00016085,2]
[340773053,1729792546080,-360.06525558,0.00016085,2]
[340773054,1729792546104,-500.0,0.00016085,2]
[340773055,1729792546129,-500.0,0.00016085,2]
[340773056,1729792546152,-6574.53,0.00016085,2]
[340773057,1729792546175,-500.0,0.00016085,2]
[340773058,1729792546199,-14984.13,0.00016085,2]
[340773059,1729792546223,-918.07,0.00016085,2]
[340773060,1729792546247,-500.0,0.00016085,2]
[340773061,1729792546271,-500.0,0.00016085,2]
[340773062,1729792546294,-5076.33,0.00016085,2]
[340773063,1729792546318,-248.79080949,0.00016085,2]
[340773064,1729792546343,-500.0,0.00016085,2]
[340773065,1729792546366,-3953.98,0.00016085,2]
[340773066,1729792546389,-1724.82,0.00016085,2]
[340773067,1729792546413,-1762.65,0.00016085,2]
[340773068,1729792546438,-500.0,0.00016085,2]
[340773069,1729792546463,-1243.77,0.00016085,2]
[340773070,1729792546488,-500.0,0.00016085,2]
[340773071,1729792546512,-1092.91,0.00016085,2]
[340773072,1729792546538,-4277.96,0.00016085,2]
[340773073,1729792546561,-500.0,0.00016085,2]
[340773074,1729792546584,-1394.76,0.00016085,2]
[340773075,1729792546610,-590.10702229,0.00016085,2]
[340773076,1729792546632,-524.37,0.00016085,2]
[340773077,1729792546658,-697.79,0.00016085,2]
[340773078,1729792546681,-1472.31,0.00016085,2]
[340773079,1729792546704,-400.40102105,0.00016085,2]
[340773080,1729792546728,-500.0,0.00016085,2]
[340773081,1729792546751,-500.0,0.00016085,2]
[340773082,1729792546775,-663.86,0.00016085,2]
[340773083,1729792546798,-1011.75,0.00016085,2]
[340773084,1729792546821,-558.67,0.00016085,2]
[340773085,1729792546846,-572.01,0.00016085,2]
[340773086,1729792546868,-500.0,0.00016085,2]
[340773087,1729792546892,-1058.83,0.00016085,2]
[340773088,1729792546914,-1474.3,0.00016085,2]
[340773089,1729792546937,-500.0,0.00016085,2]
[340773090,1729792547140,-606.8,0.00016085,2]
[340773091,1729792547163,-792.25,0.00016085,2]
[340773092,1729792547184,-500.0,0.00016085,2]
[340773093,1729792547206,-500.0,0.00016085,2]
[340773094,1729792547229,-330.29186091,0.00016086,2]
[340773095,1729792547254,-191.78205944,0.00016086,2]
[340773096,1729792547277,-357.78043712,0.00016086,2]
[340773097,1729792547300,-500.0,0.00016086,2]
[340773098,1729792547322,-544.7517007,0.00016086,2]
[340773099,1729792547346,-500.0,0.00016086,2]
[340773100,1729792547369,-500.0,0.00016086,2]
[340773101,1729792547392,-956.98,0.00016086,2]
[340773102,1729792547415,-500.0,0.00016086,2]
[340773103,1729792547436,-790.23,0.00016086,2]
[340773104,1729792547458,-1352.95,0.00016086,2]
[340773105,1729792547480,-1126.5,0.00016086,2]
[340773106,1729792547503,-626.65,0.00016086,2]
[340773107,1729792547526,-1520.63,0.00016086,2]
[340773108,1729792547548,-655.51,0.00016086,2]
[340773109,1729792547571,-1058.78,0.00016086,2]
[340773110,1729792547598,-505.87024016,0.00016086,2]
[340773111,1729792547621,-1220.42,0.00016086,2]
[340773112,1729792547644,-500.0,0.00016086,2]
[340773113,1729792547670,-1570.72,0.00016086,2]
[340773114,1729792547693,-1251.27,0.00016086,2]
[340773115,1729792547716,-500.0,0.00016086,2]
[340773116,1729792547740,-458.08075219,0.00016086,2]
[340773117,1729792547763,-500.0,0.00016086,2]
[340773118,1729792547786,-2053.06,0.00016086,2]
[340773119,1729792547809,-2083.15,0.00016086,2]
[340773120,1729792547831,-546.80717447,0.00016086,2]
[340773121,1729792547856,-608.54703056,0.00016086,2]
[340773122,1729792547878,-500.0,0.00016086,2]
[340773123,1729792547902,-500.0,0.00016086,2]
[340773124,1729792547928,-500.0,0.00016086,2]
[340773125,1729792547952,-931.43,0.00016086,2]
[340773126,1729792547976,-821.37,0.00016086,2]
[340773127,1729792548001,-500.0,0.00016086,2]
[340773128,1729792548023,-1409.56,0.00016086,2]
[340773129,1729792548047,-501.2512657,0.00016086,2]
[340773130,1729792548071,-500.0,0.00016086,2]
[340773131,1729792548095,-500.0,0.00016086,2]
[340773132,1729792548118,-1334.89,0.00016086,2]
[340773133,1729792548141,-1239.62,0.00016086,2]
[340773134,1729792548164,-185.65720694,0.00016086,2]
[340773135,1729792548187,-500.0,0.00016086,2]
[340773136,1729792548210,-441.21149492,0.00016086,2]
[340773137,1729792548234,-500.0,0.00016086,2]
[340773138,1729792548257,-500.0,0.00016086,2]
[340773139,1729792548280,-500.0,0.00016086,2]
[340773140,1729792548304,-500.0,0.00016086,2]
[340773141,1729792548327,-2866.46,0.00016086,2]
[340773142,1729792548357,-500.0,0.00016086,2]
[340773143,1729792548381,-511.5031063,0.00016086,2]
[340773144,1729792548403,-1818.9,0.00016086,2]
[340773145,1729792548426,-500.0,0.00016086,2]
[340773146,1729792548448,-926.59,0.00016086,2]
[340773147,1729792548471,-503.25739444,0.00016086,2]
[340773148,1729792548494,-500.0,0.00016086,2]
[340773149,1729792548517,-500.0,0.00016086,2]
[340773150,1729792548540,-500.0,0.00016086,2]
[340773151,1729792548563,-991.82,0.00016086,2]
[340773152,1729792548586,-500.0,0.00016086,2]
[340773153,1729792548610,-501.90902312,0.00016086,2]
[340773154,1729792548633,-500.0,0.00016086,2]
[340773155,1729792548659,-1959.08,0.00016086,2]
[340773156,1729792548682,-514.03938513,0.00016086,2]
[340773157,1729792548706,-543.03517854,0.00016086,2]
[340773158,1729792548731,-503.61881453,0.00016086,2]
[340773159,1729792548755,-500.0,0.00016086,2]
[340773160,1729792548780,-500.0,0.00016086,2]
[340773161,1729792548804,-3833.85,0.00016086,2]
[340773162,1729792548828,-3152.87,0.00016086,2]
[340773163,1729792548852,-500.0,0.00016086,2]
[340773164,1729792548875,-3292.27,0.00016086,2]
[340773165,1729792548900,-1429.36,0.00016086,2]
[340773166,1729792548924,-500.0,0.00016086,2]
[340773167,1729792548947,-713.69,0.00016086,2]
[340773168,1729792548971,-500.0,0.00016086,2]
[340773169,1729792548996,-878.91,0.00016086,2]
[340773170,1729792549020,-500.0,0.00016086,2]
[340773171,1729792549044,-600.90232501,0.00016086,2]
[340773172,1729792549066,-500.0,0.00016086,2]
[340773173,1729792549090,-500.0,0.00016086,2]
[340773174,1729792549113,-500.0,0.00016086,2]
[340773175,1729792549136,-992.34,0.00016086,2]
[340773176,1729792549159,-1761.23,0.00016086,2]
[340773177,1729792549184,-1370.46,0.00016086,2]
[340773178,1729792549211,-51654.0258643,0.00016087,2]
[340773179,1729792549240,-172586.47569,0.00016087,2]
[340773180,1729792549266,-151.0,0.00016087,2]
[340773181,1729792549291,-447.249744,0.00016087,2]
[340773182,1729792549315,-447.249744,0.00016087,2]
[340773183,1729792549340,-217.12262504,0.00016097,2]
[340773184,1729792549363,-1022.26,0.00016097,2]
[340773185,1729792549386,-508.77,0.00016097,2]
[340773186,1729792549409,-500.0,0.00016097,2]
[340773187,1729792549434,-500.0,0.00016097,2]
[340773188,1729792549457,-500.0,0.00016097,2]
[340773189,1729792549481,-500.0,0.00016097,2]
[340773190,1729792549505,-569.88015777,0.00016097,2]
[340773191,1729792549529,-500.0,0.00016097,2]
[340773192,1729792549554,-500.0,0.00016097,2]
[340773193,1729792549579,-500.0,0.00016097,2]
[340773194,1729792549605,-500.0,0.00016097,2]
[340773195,1729792549630,-500.0,0.00016097,2]
[340773196,1729792549660,-500.0,0.00016097,2]
[340773197,1729792549684,-500.0,0.00016097,2]
[340773198,1729792549709,-500.0,0.00016097,2]
[340773199,1729792549735,-500.0,0.00016097,2]
[340773200,1729792549760,-500.0,0.00016097,2]
[340773201,1729792549783,-551.80580097,0.00016097,2]
[340773202,1729792549806,-965.86,0.00016097,2]
[340773203,1729792549830,-500.0,0.00016097,2]
[340773204,1729792549855,-500.0,0.00016097,2]
[340773205,1729792549878,-500.0,0.00016097,2]
[340773206,1729792549901,-500.0,0.00016097,2]
[340773207,1729792549924,-500.0,0.00016097,2]
[340773208,1729792549948,-982.06,0.00016097,2]
[340773209,1729792549972,-1090.47,0.00016097,2]
[340773210,1729792549995,-506.0444756,0.00016097,2]
[340773211,1729792550018,-500.0,0.00016097,2]
[340773212,1729792550041,-500.0,0.00016097,2]
[340773213,1729792550065,-677.3,0.00016097,2]
[340773214,1729792550087,-500.0,0.00016097,2]
[340773215,1729792550111,-500.0,0.00016097,2]
[340773216,1729792550134,-352.24262359,0.00016097,2]
[340773217,1729792550157,-500.0,0.00016097,2]
[340773218,1729792550181,-1915.8,0.00016097,2]
[340773219,1729792550205,-500.0,0.00016097,2]
[340773220,1729792550229,-914.84,0.00016097,2]
[340773221,1729792550253,-500.0,0.00016097,2]
[340773222,1729792550470,-549.26,0.00016097,2]
[340773223,1729792550500,-500.0,0.00016097,2]
[340773224,1729792550524,-500.0,0.00016097,2]
[340773225,1729792550548,-500.0,0.00016097,2]
[340773226,1729792550573,-500.0,0.00016097,2]
[340773227,1729792550598,-500.0,0.00016097,2]
[340773228,1729792550623,-500.0,0.00016097,2]
[340773229,1729792550646,-500.0,0.00016097,2]
[340773230,1729792550674,-531.84,0.00016097,2]
[340773231,1729792550699,-537.52035856,0.00016097,2]
[340773232,1729792550726,-500.0,0.00016097,2]
[340773233,1729792550750,-872.78,0.00016097,2]
[340773234,1729792550774,-500.0,0.00016097,2]
[340773235,1729792550799,-498.44728819,0.00016097,2]
[340773236,1729792550823,-500.0,0.00016097,2]
[340773237,1729792550847,-500.0,0.00016097,2]
[340773238,1729792550871,-500.0,0.00016097,2]
[340773239,1729792550895,-500.0,0.00016097,2]
[340773240,1729792550919,-500.0,0.00016097,2]
[340773241,1729792550944,-500.0,0.00016097,2]
[340773242,1729792550970,-503.35270945,0.00016097,2]
[340773243,1729792550994,-500.0,0.00016097,2]
[340773244,1729792551019,-500.0,0.00016097,2]
[340773245,1729792551044,-993.73,0.00016097,2]
[340773246,1729792551067,-504.04030104,0.00016097,2]
[340773247,1729792551093,-500.0,0.00016097,2]
[340773248,1729792551117,-500.0,0.00016097,2]
[340773249,1729792551141,-710.68,0.00016097,2]
[340773250,1729792551164,-500.0,0.00016097,2]
[340773251,1729792551186,-500.0,0.00016097,2]
[340773252,1729792551210,-853.62,0.00016097,2]